{"text_format":"1","workbook":"xlsx","n_sheets":1,"sheets":["Credenciamento IPAJM"],"not_rendered":{"charts":0,"images":9,"macros":1,"external_links":0,"defined_names":1,"comments":0,"pivot_tables":0},"unopened":[],"bounds":{"document_bytes":16777216,"sheet_cells":100000,"rows_first":2000,"rows_last":500,"rows_between":2000,"halvings":0,"cell_chars":16384,"cell_head_chars":4096},"cells_cut":0,"cells_raw":0,"read":"whole","date_system":"1900"}

{"sheet":"Credenciamento IPAJM","index":0,"n_rows":42,"n_cols":10,"rows_kept":42,"cut":false,"hidden":false,"merged":[[0,0,0,9],[13,0,14,0],[13,1,14,1],[13,2,13,7],[13,8,14,8],[13,9,14,9],[1,0,1,9]]}
[]
["ANEXO I – Checklist de analisar pedido de credenciamento"]
[]
["Instituição analisada:"]
["CNPJ:"]
["Data da análise:"]
["Atribuição(ões) requerida(s):",{"$f":"IF(C7,IFERROR(IF(AND($C$16:$C$41),1,0),-1),\"\")","v":-1},true]
[null,{"$f":"IF(C8,IFERROR(IF(AND($D$16:$D$41),1,0),-1),\"\")","v":-1},true]
[null,{"$f":"IF(C9,IFERROR(IF(AND($E$16:$E$41),1,0),-1),\"\")","v":-1},true]
[null,{"$f":"IF(C10,IFERROR(IF(AND($F$16:$F$41),1,0),-1),\"\")","v":-1},true]
[null,{"$f":"IF(C11,IFERROR(IF(AND($G$16:$G$41),1,0),-1),\"\")","v":-1},true]
[null,{"$f":"IF(C12,IFERROR(IF(AND($H$16:$H$41),1,0),-1),\"\")","v":-1},true]
[]
["Requisito","Documento apresentado","Atribuição",null,null,null,null,null,"Situação","Observação"]
[null,null,"Administrador","Gestor","Distribuidor","Emissor","Intermediário","Custodiante"]
["Formulário de credenciamento assinado",null,{"$error":"#N/A"},{"$f":"C16","v":{"$error":"#N/A"}},{"$f":"D16","v":{"$error":"#N/A"}},{"$error":"#N/A"},{"$error":"#N/A"},{"$error":"#N/A"},{"$f":"IFERROR(IF(C16=TRUE,1,0),-1)","v":-1}]
["Possui bom ambiente de controle interno",null,{"$error":"#N/A"},{"$f":"C17","v":{"$error":"#N/A"}},{"$error":"#N/A"},{"$error":"#N/A"},{"$error":"#N/A"},{"$error":"#N/A"},{"$f":"IFERROR(IF(C17=TRUE,1,0),-1)","v":-1}]
["Não esteve exposto a risco reputacional nos últimos 5 (cinco) anos",null,{"$error":"#N/A"},{"$error":"#N/A"},{"$error":"#N/A"},{"$error":"#N/A"},{"$error":"#N/A"},{"$error":"#N/A"},-1]
["Possui elevado padrão ético de conduta e se compromete a cumprir, no que couber, o código de ética do IPAJM",null,{"$error":"#N/A"},{"$error":"#N/A"},{"$error":"#N/A"},{"$error":"#N/A"},{"$error":"#N/A"},{"$error":"#N/A"},-1]
["Atende aos princípios de segurança, proteção e prudência financeira",null,{"$error":"#N/A"},{"$error":"#N/A"},{"$error":"#N/A"},{"$error":"#N/A"},{"$error":"#N/A"},{"$error":"#N/A"},-1]
["Possui algum processo de mitigação de riscos",null,{"$error":"#N/A"},{"$error":"#N/A"},{"$error":"#N/A"},{"$error":"#N/A"},{"$error":"#N/A"},{"$error":"#N/A"},-1]
["Não sofreu qualquer suspensão, inabilitação ou condenação pela CVM ou BACEN, se comprometendo a notificar o IPAJM em caso de ocorrência posterior",null,{"$error":"#N/A"},{"$error":"#N/A"},{"$error":"#N/A"},{"$error":"#N/A"},{"$error":"#N/A"},{"$error":"#N/A"},-1]
["Não Possui suspensão ou inabilitação pela CVM, pelo Banco Central do Brasil ou por outro órgão competente",null,{"$error":"#N/A"},{"$f":"C23","v":{"$error":"#N/A"}},{"$error":"#N/A"},{"$error":"#N/A"},{"$error":"#N/A"},{"$error":"#N/A"},-1]
["Não Possui qualuer restrição que, a critério da CVM, do Banco Central do Brasil ou de outros órgãos competentes, desaconselhem um relacionamento seguro com investidores institucionais",null,{"$error":"#N/A"},{"$f":"C24","v":{"$error":"#N/A"}},{"$error":"#N/A"},{"$error":"#N/A"},{"$error":"#N/A"},{"$error":"#N/A"},-1]
["Apresentou todos os documentos ou informações necessárias para o processo de análise do credenciamento requerido",null,{"$error":"#N/A"},{"$f":"C25","v":{"$error":"#N/A"}},{"$error":"#N/A"},{"$error":"#N/A"},{"$error":"#N/A"},{"$error":"#N/A"},-1]
["Faz parte da lista de instituições que atendam as condições estabelecidas no inciso I do § 2º do art. 21, da Resolução nº CMN 4.963, de 25 de novembro de 2021, publicada pela Secretaria de Previdência do Ministério de Previdência e Trabalho",null,{"$error":"#N/A"},null,null,null,null,null,-1]
["Detém, no máximo, 50% (cinquenta por cento) dos recursos sob sua administração oriundos de regimes próprios de previdência social",null,{"$error":"#N/A"},null,null,null,null,null,-1]
["Comprovou experiência mínima de 5 (cinco) anos dos profissionais diretamente relacionados à administração de ativos de terceiros",null,{"$error":"#N/A"},null,null,null,null,null,-1]
["Apresentou seu histórico e experiência de atuação e informe sua solidez patrimonial e o volume de recursos sob administração",null,{"$error":"#N/A"},null,null,null,null,null,-1]
["Apresentou seu histórico e experiência de atuação e informe o volume de recursos sob gestão",null,null,{"$error":"#N/A"},null,null,null,null,{"$f":"IFERROR(IF(D30=TRUE,1,0),-1)","v":-1}]
["Comprovou experiência mínima de 5 (cinco) anos dos profissionais diretamente relacionados à gestão de ativos de terceiros",null,null,{"$error":"#N/A"},null,null,null,null,{"$f":"IFERROR(IF(D31=TRUE,1,0),-1)","v":-1}]
["Está classificado entre os 100 maiores volumes de recursos sob gestão total ou entre os 50 maiores volumes de recursos no segmento RPPS no Ranking de Gestão de Fundos de Investimento",null,null,{"$error":"#N/A"},null,null,null,null,-1]
["Demonstrou a aderência da rentabilidade de seus produtos aos respectivos indicadores de desempenho",null,null,{"$error":"#N/A"},null,null,null,null,-1]
["Apresentou relatório de qualidade de gestão emitido por agência especializada, cuja classificação esteja posicionada entre os três mais altos níveis de qualidade",null,null,{"$error":"#N/A"},null,null,null,null,-1]
["Faz a gestão de pelo menos um fundo de investimento com, no mínimo, 5 (cinco) anos de operação, que seja enquadrado para RPPS de acordo com as normas vigentes, cujo administrador esteja previamente credenciado pelo IPAJM (Qual?)",null,null,{"$error":"#N/A"},null,null,null,null,-1]
["Apresentou seu contrato de distribuição com algum gestor previamente credenciado",null,null,null,{"$error":"#N/A"},null,null,null,{"$f":"IFERROR(IF(E36=TRUE,1,0),-1)","v":-1}]
["Comprovou possuir experiência mínima de 5 (cinco) anos na distribuição de fundos de investimentos para RPPS e possuir na carteira de clientes ativos pelo menos um RPPS com patrimônio sob gestão superior a 1 (um) bilhão de reais",null,null,null,{"$error":"#N/A"},null,null,null,{"$f":"IFERROR(IF(E37=TRUE,1,0),-1)","v":-1}]
["Faz parte da lista de instituições que atendam as condições estabelecidas no inciso I do § 2º do art. 21, da Resolução CMN nº 4.963/2021, publicada pela Secretaria de Previdência do Ministério de Previdência e Trabalho",null,null,null,null,{"$error":"#N/A"},null,null,{"$f":"IFERROR(IF(F38=TRUE,1,0),-1)","v":-1}]
["Comprovou ser considerada de baixo risco de crédito, com base em classificação efetuada por agência classificadora de risco registrada na Comissão de Valores Mobiliários ou reconhecida pelo Banco Central do Brasil",null,null,null,null,{"$error":"#N/A"},null,null,{"$f":"IFERROR(IF(F39=TRUE,1,0),-1)","v":-1}]
["Declarou formalmente a disponibilidade e capacidade para ofertar títulos públicos federais por meio da plataforma eletrônica de negociação utilizada pelo IPAJM",null,null,null,null,null,{"$error":"#N/A"},null,{"$f":"IFERROR(IF(G40=TRUE,1,0),-1)","v":-1}]
["Se comprometeu a seguir as regras e prazos definidos nos pedidos de cotação, registrando e liquidando as operações realizadas no sistema SELIC por meio do custodiante contratado pelo IPAJM",null,null,null,null,null,{"$error":"#N/A"},null,{"$f":"IFERROR(IF(G41=TRUE,1,0),-1)","v":-1}]
["Observações gerais e difereciais competitivos:"]